fUST/lending_fUST_20251228
["ID","MTS","AMOUNT","RATE_DAILY","PERIOD"]
[399920333,1766874922390,852.80715331,0.0001431,2]
[399920334,1766874923304,1513.08015172,0.00014311,2]
[399920335,1766874923343,1513.08015172,0.00014311,2]
[399920336,1766874923385,1513.08015172,0.00014311,2]
[399920337,1766874923578,1513.08015172,0.00014311,2]
[399920338,1766874923618,1513.08015172,0.00014311,2]
[399920339,1766874923659,1513.08015172,0.00014311,2]
[399920340,1766874923696,68.72193637,0.00014311,2]
[399920341,1766874923724,1444.35821535,0.00014311,2]
[399920342,1766874923755,1513.08015172,0.00014311,2]
[399920343,1766874923789,1513.08015172,0.00014311,2]
[399920344,1766874923821,1513.08015172,0.00014311,2]
[399920345,1766874923895,1513.08015172,0.00014311,2]
[399920346,1766874923929,1513.08015172,0.00014311,2]
[399920347,1766874923970,990.25102605,0.00014311,2]
[399920348,1766874923998,522.82912567,0.00014311,2]
[399920349,1766874924031,1513.08015172,0.00014311,2]
[399920350,1766874924066,1513.08015172,0.00014311,2]
[399920351,1766874924097,1513.08015172,0.00014311,2]
[399920352,1766874924128,1513.08015172,0.00014311,2]
[399920353,1766874924159,1513.08015172,0.00014311,2]
[399920354,1766874924198,1513.08015172,0.00014311,2]
[399920355,1766874924239,398.69996401,0.00014311,2]
[399920356,1766874924264,1114.38018771,0.00014311,2]
[399920357,1766874924298,1513.08015172,0.00014311,2]
[399920358,1766874924362,1513.08015172,0.00014311,2]
[399920359,1766874924447,1513.08015172,0.00014311,2]
[399920360,1766874924490,1513.08015172,0.00014311,2]
[399920361,1766874924539,1513.08015172,0.00014311,2]
[399920362,1766874924636,1320.22905369,0.00014311,2]
[399920363,1766874928534,-192.85109803,0.00014311,2]
[399920364,1766874928566,-1513.08015172,0.00014311,2]
[399920365,1766874928597,-1513.08015172,0.00014311,2]
[399920366,1766874928627,-1513.08015172,0.00014311,2]
[399920367,1766874928807,-1513.08015172,0.00014311,2]
[399920368,1766874928847,-1513.08015172,0.00014311,2]
[399920369,1766874928886,-1513.08015172,0.00014311,2]
[399920370,1766874937707,-1513.08015172,0.00014311,2]
[399920371,1766874937742,-1513.08015172,0.00014311,2]
[399920372,1766874937780,-1513.08015172,0.00014311,2]
[399920373,1766874937971,-1513.08015172,0.00014311,2]
[399920374,1766874938009,-1513.08015172,0.00014311,2]
[399920375,1766874938047,-1513.08015172,0.00014311,2]
[399920376,1766874939530,921.52908968,0.00014168,2]
[399920377,1766874939555,4078.47091032,0.00014168,2]
[399920378,1766874955942,150.0,9.237e-05,2]
[399920379,1766874956333,207.25,9.677e-05,2]
[399920380,1766874956751,310.87,0.00010117,2]
[399920381,1766874958698,-414.5,0.00010557,2]
[399920382,1766874958730,-518.12,0.00010997,2]
[399920383,1766874958763,-621.74,0.00011437,2]
[399920384,1766874958798,-725.37,0.00011877,2]
[399920385,1766874959105,-828.99,0.00012317,2]
[399920386,1766874961754,-932.62,0.00012756,2]
[399920387,1766874961798,-1036.24,0.00013196,2]
[399920388,1766874961993,-7679.54132885,0.00014312,2]
[399920389,1766874962059,-10000.01,0.00014312,2]
[399920390,1766874962218,-10000.01,0.00014312,2]
[399920391,1766874967788,-5000.0,0.00010451,2]
[399920392,1766874967827,-0.01,0.00014311,2]
[399920393,1766874980021,-500.0,0.00013273,2]
[399920394,1766874980055,-500.0,0.00014311,2]
[399920395,1766874980088,-500.0,0.00014311,2]
[399920396,1766874980122,-500.0,0.00014311,2]
[399920397,1766874980156,-500.0,0.00014311,2]
[399920398,1766874980190,-500.0,0.00014311,2]
[399920399,1766874980222,-500.0,0.00014311,2]
[399920400,1766874980255,-500.0,0.00014311,2]
[399920401,1766874980288,-500.0,0.00014311,2]
[399920402,1766874980322,-500.0,0.00014311,2]
[399920403,1766874980528,-397.08415211,0.00014311,2]
[399920404,1766874980560,-500.0,0.00014311,2]
[399920405,1766874980591,-299.99,0.00014311,2]
[399920406,1766874980847,-0.01,0.00014311,2]
[399920407,1766874980868,-499.99,0.00014311,2]
[399920408,1766874980878,-7105.87169578,0.00014312,2]
[399920409,1766874982874,-500.0,0.00014311,2]
[399920410,1766874982922,-500.0,0.00014311,2]
[399920411,1766874982975,-8000.01,0.00014312,2]
[399920412,1766874988918,-5000.0,0.00014168,2]
[399920413,1766874988953,-0.01,0.00014311,2]
[399920414,1766874992092,-499.99,0.00014311,2]
[399920415,1766874992126,-500.0,0.00014311,2]
[399920416,1766874992158,-500.0,0.00014311,2]
[399920417,1766874992190,-500.0,0.00014311,2]
[399920418,1766874992221,-500.0,0.00014311,2]
[399920419,1766874992253,-500.0,0.00014311,2]
[399920420,1766874992285,-500.0,0.00014311,2]
[399920421,1766874992318,-500.0,0.00014311,2]
[399920422,1766874992348,-500.0,0.00014311,2]
[399920423,1766874992380,-500.0,0.00014311,2]
[399920424,1766874992842,-0.03,0.00014311,2]
[399920425,1766874994980,-4490.3643166,0.00014312,2]
[399920426,1766874995006,-1019.2813668,0.00014312,2]
[399920427,1766874998005,-1207.16926057,0.00014361,2]
[399920428,1766875001866,500.0,0.0001431,2]
[399920429,1766875001908,500.0,0.0001431,2]
[399920430,1766875001941,500.0,0.0001431,2]
[399920431,1766875002009,500.0,0.0001431,2]
[399920432,1766875002058,500.0,0.0001431,2]
[399920433,1766875002119,400.0,0.0001431,2]
[399920434,1766875002166,500.0,0.0001431,2]
[399920435,1766875002222,500.0,0.0001431,2]
[399920436,1766875002277,500.0,0.0001431,2]
[399920437,1766875002331,500.0,0.0001431,2]
[399920438,1766875002395,500.0,0.0001431,2]
[399920439,1766875007221,-249.16185246,0.00014361,2]
[399920440,1766875010088,5000.0,0.00014389,2]
[399920441,1766875023547,504.26760636,0.00013273,2]
[399920442,1766875023752,501.15139327,0.00013273,2]
[399920443,1766875029105,500.0,0.0001431,2]
[399920444,1766875029140,332.48731403,0.0001431,2]
[399920445,1766875029184,171.84999562,0.0001431,2]
[399920446,1766875033195,150.0,8.676e-05,2]
[399920447,1766875033863,195.43,9.089e-05,2]
[399920448,1766875034111,293.15,9.502e-05,2]
[399920449,1766875034169,1853.3499858,0.00014389,2]
[399920450,1766875034197,3146.6500142,0.00014389,2]
[399920451,1766875034525,390.86,9.915e-05,2]
[399920452,1766875034921,488.58,0.00010328,2]
[399920453,1766875035349,586.29,0.00010741,2]
[399920454,1766875035787,684.01,0.00011155,2]
[399920455,1766875035859,300.0,0.00013673,2]
[399920456,1766875035889,500.0,0.00013273,2]
[399920457,1766875035916,300.0,0.00014221,2]
[399920458,1766875035945,500.0,0.00013821,2]
[399920459,1766875036240,781.73,0.00011568,2]
[399920460,1766875036663,879.44,0.00011981,2]
[399920461,1766875037074,977.16,0.00012394,2]
[399920462,1766875037352,465.2899858,0.00013273,2]
[399920463,1766875037377,34.7100142,0.00013273,2]
[399920464,1766875037405,500.54265842,0.00013273,2]
[399920465,1766875037433,501.26558658,0.00013821,2]
[399920466,1766875039583,500.0,0.00013273,2]
[399920467,1766875039645,500.53053187,0.00013821,2]
[399920468,1766875042001,261.05629017,0.00013273,2]
[399920469,1766875043334,501.15299281,0.00013273,2]
[399920470,1766875045113,500.0,0.00013273,2]
[399920471,1766875045153,500.91122184,0.00013821,2]
[399920472,1766875045336,500.0,0.00013273,2]
[399920473,1766875045397,500.89242764,0.00013821,2]
[399920474,1766875045479,500.0,0.00013273,2]
[399920475,1766875045537,500.0,0.00014368,2]
[399920476,1766875045604,1000.0,0.00013821,2]
[399920477,1766875045720,500.0,0.00013273,2]
[399920478,1766875045748,1550.0,0.00014368,2]
[399920479,1766875045784,1000.0,0.00013821,2]
[399920480,1766875047747,500.0,0.00013273,2]
[399920481,1766875047776,500.0,0.00013273,2]
[399920482,1766875047820,185.46653567,0.00013821,2]
[399920483,1766875047847,314.53346433,0.00013821,2]
[399920484,1766875047877,500.0,0.00013821,2]
[399920485,1766875048598,500.96341993,0.00013273,2]
[399920486,1766875048988,353.49,0.0001,2]
[399920487,1766875051454,353.49,0.000102,2]
[399920488,1766875053930,353.49,0.000104,2]
[399920489,1766875056382,353.49,0.000106,2]
[399920490,1766875058775,5000.0,0.00014389,2]
[399920491,1766875058861,353.49,0.000108,2]
[399920492,1766875061327,353.49,0.00011,2]
[399920493,1766875082161,3586.05,0.00014389,2]
[399920494,1766875082188,1413.95,0.00014389,2]
[399920495,1766875083403,642.72771233,0.00013273,2]
[399920496,1766875086932,203.38180306,0.00013273,2]
[399920497,1766875087073,500.0,0.00013273,2]
[399920498,1766875087252,500.0,0.00013273,2]
[399920499,1766875087297,1000.0,0.00013821,2]
[399920500,1766875087354,500.0,0.00014368,2]
[399920501,1766875087664,158.24212442,0.00013699,2]
[399920502,1766875092737,500.0,0.00013273,2]
[399920503,1766875102108,682.496814,0.00013699,2]
[399920504,1766875105485,3899.21154619,0.00014389,2]
[399920505,1766875105511,1100.78845381,0.00014389,2]
[399920506,1766875110056,150.0,8.876e-05,2]
[399920507,1766875110510,150.0,9.299e-05,2]
[399920508,1766875110961,195.22,9.721e-05,2]
[399920509,1766875111455,260.3,0.00010144,2]
[399920510,1766875111984,325.37,0.00010567,2]
[399920511,1766875112279,390.45,0.00010989,2]
[399920512,1766875112716,455.52,0.00011412,2]
[399920513,1766875113165,520.6,0.00011835,2]
[399920514,1766875113602,585.67,0.00012257,2]
[399920515,1766875114075,650.75,0.0001268,2]
[399920516,1766875129354,5000.0,0.00014389,2]
[399920517,1766875143904,500.0,0.00013273,2]
[399920518,1766875143931,500.0,0.00013273,2]
[399920519,1766875143959,500.94927539,0.00013699,2]
[399920520,1766875143988,500.0,0.00013273,2]
[399920521,1766875144021,667.35408733,0.00013821,2]
[399920522,1766875144054,1000.0,0.00013821,2]
[399920523,1766875144082,95.28663728,0.00013821,2]
[399920524,1766875144105,904.71336272,0.00013821,2]
[399920525,1766875144136,302.81142066,0.00014368,2]
[399920526,1766875144163,500.90583936,0.00014368,2]
[399920527,1766875146919,500.60687214,0.00013273,2]
[399920528,1766875152770,5000.0,0.00014389,2]
[399920529,1766875157258,500.0,0.00013273,2]
[399920530,1766875177104,2290.97250512,0.00014389,2]
[399920531,1766875177128,2709.02749488,0.00014389,2]
[399920532,1766875187267,150.0,8.594e-05,2]
[399920533,1766875187656,150.0,9.004e-05,2]
[399920534,1766875188094,150.0,9.413e-05,2]
[399920535,1766875188574,189.18,9.822e-05,2]
[399920536,1766875189011,236.48,0.00010232,2]
[399920537,1766875189956,283.77,0.00010641,2]
[399920538,1766875190366,331.07,0.0001105,2]
[399920539,1766875190840,378.37,0.00011459,2]
[399920540,1766875191281,425.66,0.00011869,2]
[399920541,1766875191768,472.96,0.00012278,2]
[399920542,1766875200938,4523.49250512,0.00014389,2]
[399920543,1766875200962,476.50749488,0.00014389,2]
[399920544,1766875205388,9523.50250512,0.00013223,2]
[399920545,1766875205412,250.65970719,0.00013223,2]
[399920546,1766875205716,5000.0,0.00013223,2]
[399920547,1766875206005,4749.35029281,0.00013223,2]
[399920548,1766875206029,250.64970719,0.00013223,2]
[399920549,1766875206322,5000.0,0.00013223,2]
[399920550,1766875206642,4749.36029281,0.00013223,2]
[399920551,1766875206666,250.63970719,0.00013223,2]
[399920552,1766875210502,500.0,0.00013273,2]
[399920553,1766875217669,1642.08661493,0.00014389,2]
[399920554,1766875226685,5000.0,0.00014389,2]
[399920555,1766875250993,2607.28367788,0.00014389,2]
[399920556,1766875251019,2392.71632212,0.00014389,2]
[399920557,1766875259722,150.0,9.029e-05,2]
[399920558,1766875260115,150.0,9.459e-05,2]
[399920559,1766875260593,150.0,9.889e-05,2]
[399920560,1766875261062,162.84,0.00010319,2]
[399920561,1766875261538,203.55,0.00010749,2]
[399920562,1766875261980,244.26,0.00011179,2]
[399920563,1766875262432,284.97,0.00011609,2]
[399920564,1766875262843,325.68,0.00012039,2]
[399920565,1766875263293,366.38,0.00012469,2]
[399920566,1766875263431,500.0,0.00013699,2]
[399920567,1766875263601,500.0,0.00013273,2]
[399920568,1766875263631,500.0,0.00013273,2]
[399920569,1766875263659,500.0,0.00014368,2]
[399920570,1766875263688,1000.0,0.00013821,2]
[399920571,1766875263721,501.17538671,0.00014368,2]
[399920572,1766875263749,1000.0,0.00013821,2]
[399920573,1766875263780,1000.0,0.00013821,2]
[399920574,1766875263812,68.43829117,0.00012899,2]
[399920575,1766875263838,338.65170883,0.00012899,2]
[399920576,1766875263867,500.0,0.00013273,2]
[399920577,1766875267904,1000.0,0.00013821,2]
[399920578,1766875267997,500.0,0.00013273,2]
[399920579,1766875268206,500.0,0.00013273,2]
[399920580,1766875268241,1001.80064451,0.00013821,2]
[399920581,1766875271510,310.15504052,0.00013273,2]
[399920582,1766875274393,5000.0,0.00014389,2]
[399920583,1766875277579,300.0,0.00013673,2]
[399920584,1766875277722,500.0,0.00013273,2]
[399920585,1766875280255,49.40260614,0.00013273,2]
[399920586,1766875280278,450.59739386,0.00013273,2]
[399920587,1766875285348,500.0,0.00013273,2]
[399920588,1766875286143,500.0,0.00013273,2]
[399920589,1766875286283,500.28055884,0.00013273,2]
[399920590,1766875286456,500.0,0.00013273,2]
[399920591,1766875286488,500.0,0.00013273,2]
[399920592,1766875288128,500.0,0.00013273,2]
[399920593,1766875288161,500.0,0.00013821,2]
[399920594,1766875288190,500.0,0.00013821,2]
[399920595,1766875288244,500.0,0.00013273,2]
[399920596,1766875289557,500.0,0.00013273,2]
[399920597,1766875298345,4549.1320473,0.00014389,2]
[399920598,1766875310179,-450.8679527,0.00014389,2]
[399920599,1766875322474,5000.0,0.00014389,2]
[399920600,1766875326256,500.0,0.00013273,2]
[399920601,1766875326320,501.21853505,0.00013821,2]
[399920602,1766875326433,500.0,0.00013699,2]
[399920603,1766875326488,1001.14105956,0.00014247,2]
[399920604,1766875330274,150.0,9.034e-05,2]
[399920605,1766875330746,150.0,9.464e-05,2]
[399920606,1766875331187,150.0,9.894e-05,2]
[399920607,1766875331491,500.0,0.00013273,2]
[399920608,1766875331540,500.0,0.00013821,2]
[399920609,1766875331738,145.91449999,0.00010324,2]
[399920610,1766875331766,4.08550001,0.00010324,2]
[399920611,1766875332058,150.0,0.00010754,2]
[399920612,1766875332501,150.0,0.00011184,2]
[399920613,1766875332936,150.0,0.00011615,2]
[399920614,1766875346323,5000.0,0.00014389,2]
[399920615,1766875369771,4545.92449999,0.00014389,2]
[399920616,1766875369796,454.07550001,0.00014389,2]
[399920617,1766875383179,500.0,0.00013699,2]
[399920618,1766875383207,500.23722085,0.00013273,2]
[399920619,1766875390500,523.8766182,0.00013699,2]
[399920620,1766875393705,5000.0,0.00014389,2]
[399920621,1766875396458,500.0,0.00013273,2]
[399920622,1766875396517,500.0,0.00013821,2]
[399920623,1766875398313,150.0,8.9e-05,2]
[399920624,1766875398364,300.0,0.00013673,2]
[399920625,1766875398470,500.0,0.00013273,2]
[399920626,1766875398513,869.09528875,0.00013821,2]
[399920627,1766875399658,150.0,9.323e-05,2]
[399920628,1766875400091,52.72537219,9.747e-05,2]
[399920629,1766875400118,97.27462781,9.747e-05,2]
[399920630,1766875400711,500.0,0.00013273,2]
[399920631,1766875401054,150.0,0.00010171,2]
[399920632,1766875401970,500.92480305,0.00013699,2]
[399920633,1766875405778,500.0,0.00013273,2]
[399920634,1766875406521,500.0,0.00013273,2]
[399920635,1766875406573,500.0,0.00013273,2]
[399920636,1766875406623,500.0,0.00013273,2]
[399920637,1766875408517,500.0,0.00013273,2]
[399920638,1766875408546,500.0,0.00013273,2]
[399920639,1766875408575,500.0,0.00013821,2]
[399920640,1766875409299,164.53,0.0001,2]
[399920641,1766875409750,500.0,0.00013273,2]
[399920642,1766875411813,164.53,0.000102,2]
[399920643,1766875414408,164.53,0.000104,2]
[399920644,1766875416777,164.53,0.000106,2]
[399920645,1766875419235,164.53,0.000108,2]
[399920646,1766875420881,4676.43519695,0.00014389,2]
[399920647,1766875420907,323.56480305,0.00014389,2]
[399920648,1766875421704,164.53,0.00011,2]
[399920649,1766875443337,500.40982816,0.00013699,2]
[399920650,1766875443387,642.8885393,0.00013273,2]
[399920651,1766875444842,5000.0,0.00014389,2]
[399920652,1766875446471,500.0,0.00013821,2]
[399920653,1766875446547,500.0,0.00013273,2]
[399920654,1766875447299,500.23692856,0.00013699,2]
[399920655,1766875450299,500.0,0.00013699,2]
[399920656,1766875450357,516.44780102,0.00014247,2]
[399920657,1766875450946,500.0,0.00013821,2]
[399920658,1766875450995,351.93209991,0.00013273,2]
[399920659,1766875451022,148.06790009,0.00013273,2]
[399920660,1766875469120,5000.0,0.00014389,2]
[399920661,1766875492523,4851.94209991,0.00014389,2]
[399920662,1766875492548,148.05790009,0.00014389,2]
[399920663,1766875503780,500.0,0.00013273,2]
[399920664,1766875503810,500.0,0.00013699,2]
[399920665,1766875503845,500.0,0.00013273,2]
[399920666,1766875503876,1000.0,0.00014247,2]
[399920667,1766875503904,500.0,0.00013273,2]
[399920668,1766875503942,1000.0,0.00013821,2]
[399920669,1766875503980,1060.47240472,0.00014368,2]
[399920670,1766875504010,1000.0,0.00013821,2]
[399920671,1766875504039,1060.77768411,0.00013821,2]
[399920672,1766875504070,1500.0,0.00014368,2]
[399920673,1766875504111,500.39740459,0.00013273,2]
[399920674,1766875504152,159.68076014,0.00013699,2]
[399920675,1766875508972,500.0,0.00013699,2]
[399920676,1766875510392,70.62384635,0.00013699,2]
[399920677,1766875510417,429.37615365,0.00013699,2]
[399920678,1766875510921,453.92758847,0.00013699,2]
[399920679,1766875511023,500.0,0.00013699,2]
[399920680,1766875511530,500.41497022,0.00013699,2]
[399920681,1766875512609,307.44536568,0.00013699,2]
[399920682,1766875513106,500.30225769,0.00013699,2]
[399920683,1766875514161,500.87776357,0.00013699,2]
[399920684,1766875516117,5000.0,0.00014389,2]
[399920685,1766875516146,500.82519129,0.00013699,2]
[399920686,1766875516549,500.0,0.00013699,2]
[399920687,1766875517419,500.74210691,0.00014247,2]
[399920688,1766875517511,306.09860252,0.00013699,2]
[399920689,1766875517535,193.90139748,0.00013699,2]
[399920690,1766875517563,539.95789828,0.00013699,2]
[399920691,1766875518044,500.22833505,0.00013699,2]
[399920692,1766875518435,500.0,0.00013273,2]
[399920693,1766875518476,1000.0,0.00013821,2]
[399920694,1766875520195,600.0,0.00014221,2]
[399920695,1766875520246,300.0,0.00013673,2]
[399920696,1766875520377,644.31860189,0.00013273,2]
[399920697,1766875520419,500.0,0.00013699,2]
[399920698,1766875520473,500.77567295,0.00014247,2]
[399920699,1766875520710,500.76279856,0.00013699,2]
[399920700,1766875520845,500.19853868,0.00013699,2]
[399920701,1766875521442,223.48752148,0.00014247,2]
[399920702,1766875521481,500.0,0.00013699,2]
[399920703,1766875522320,336.32344212,0.00013273,2]
[399920704,1766875523325,524.52854709,0.00013699,2]
[399920705,1766875523930,534.57319666,0.00013699,2]
[399920706,1766875524288,500.21213035,0.00013699,2]
[399920707,1766875524555,500.77324333,0.00013699,2]
[399920708,1766875525985,500.0,0.00013699,2]
[399920709,1766875526019,99.96867608,0.00014247,2]
[399920710,1766875526043,401.09340691,0.00014247,2]
[399920711,1766875526347,500.0,0.00013699,2]
[399920712,1766875526810,267.06421106,0.00013699,2]
[399920713,1766875527585,500.0,0.00013699,2]
[399920714,1766875528045,500.0,0.00013699,2]
[399920715,1766875528086,500.0,0.00013273,2]
[399920716,1766875528128,599.35395839,0.00014247,2]
[399920717,1766875528209,500.0,0.00013273,2]
[399920718,1766875528262,1000.0,0.00013821,2]
[399920719,1766875528346,500.0,0.00014368,2]
[399920720,1766875528376,500.0,0.00013273,2]
[399920721,1766875528407,1000.0,0.00013821,2]
[399920722,1766875528456,1000.0,0.00014368,2]
[399920723,1766875528518,202.90378031,0.00013273,2]
[399920724,1766875529330,500.0,0.00013699,2]
[399920725,1766875530156,150.0,9.118e-05,2]
[399920726,1766875530395,500.0,0.00013273,2]
[399920727,1766875530443,879.59464333,0.00013821,2]
[399920728,1766875530467,120.40535667,0.00013821,2]
[399920729,1766875530499,1000.0,0.00014368,2]
[399920730,1766875530557,150.0,9.552e-05,2]
[399920731,1766875530822,500.0,0.00013699,2]
[399920732,1766875530850,500.54754333,0.00014247,2]
[399920733,1766875530996,150.0,9.986e-05,2]
[399920734,1766875531180,500.0,0.00013273,2]
[399920735,1766875531231,1000.0,0.00013821,2]
[399920736,1766875531281,1000.0,0.00014368,2]
[399920737,1766875531526,150.0,0.0001042,2]
[399920738,1766875531992,150.0,0.00010854,2]
[399920739,1766875540967,318.28294897,0.00014389,2]
[399920740,1766875550124,-250.0,0.00014411,2]
[399920741,1766875550146,-253.52769931,0.00014411,2]
[399920742,1766875550166,-626.0,0.00014411,2]
[399920743,1766875550186,-1175.11937438,0.00014576,2]
[399920744,1766875553029,172.950003,0.00013877,2]
[399920745,1766875557127,2520.13111824,0.00014389,2]
[399920746,1766875563308,500.0,0.00013699,2]
[399920747,1766875563371,501.95481713,0.00014247,2]
[399920748,1766875566394,501.14329338,0.00013699,2]
[399920749,1766875567713,264.59491928,0.00013699,2]
[399920750,1766875567738,237.96531193,0.00013699,2]
[399920751,1766875567812,636.42398366,0.00013699,2]
[399920752,1766875568175,500.24781448,0.00013699,2]
[399920753,1766875568279,500.0,0.00013699,2]
[399920754,1766875568323,500.85020736,0.00014247,2]
[399920755,1766875569526,501.2126787,0.00013699,2]
[399920756,1766875570435,159.34794674,0.00013699,2]
[399920757,1766875570891,502.68659046,0.00013699,2]
[399920758,1766875570928,500.0,0.00013273,2]
[399920759,1766875581018,2560.15629963,0.00014389,2]
[399920760,1766875623784,501.15260328,0.00013273,2]
[399920761,1766875623824,500.0,0.00013699,2]
[399920762,1766875623855,500.0,0.00013699,2]
[399920763,1766875623909,297.13935749,0.00013699,2]
[399920764,1766875624023,500.17286691,0.00013699,2]
[399920765,1766875624055,500.1676063,0.00013699,2]
[399920766,1766875626630,500.89585981,0.00013699,2]
[399920767,1766875626805,101.59087325,0.00013699,2]
[399920768,1766875626830,398.53514587,0.00013699,2]
[399920769,1766875627621,158.314159,0.00013273,2]
[399920770,1766875627972,500.0,0.00013273,2]
[399920771,1766875628000,500.0,0.00013273,2]
[399920772,1766875628028,500.0,0.00013821,2]
[399920773,1766875628065,500.0,0.00013821,2]
[399920774,1766875628162,523.43161198,0.00013699,2]
[399920775,1766875628503,4330.1935044,0.00014389,2]
[399920776,1766875629785,177.9953402,0.00013699,2]
[399920777,1766875630728,500.69817016,0.00013699,2]
[399920778,1766875630978,500.21096552,0.00013699,2]
[399920779,1766875631258,500.71314096,0.00013699,2]
[399920780,1766875631909,500.39251583,0.00013699,2]
[399920781,1766875633333,514.17282938,0.00013699,2]
[399920782,1766875633650,500.5438368,0.00013699,2]
[399920783,1766875633815,500.32232428,0.00013699,2]
[399920784,1766875634177,500.80737213,0.00013699,2]
[399920785,1766875634292,518.5501948,0.00013699,2]
[399920786,1766875634545,166.08941585,0.00013699,2]
[399920787,1766875634805,500.71064825,0.00013699,2]
[399920788,1766875635090,288.60974144,0.00013699,2]
[399920789,1766875635114,51.3396357,0.00013699,2]
[399920790,1766875636477,500.96147603,0.00013699,2]
[399920791,1766875636509,500.71188809,0.00013699,2]
[399920792,1766875636910,500.60193281,0.00013699,2]
[399920793,1766875638027,455.70827414,0.00013699,2]
[399920794,1766875638271,500.67343957,0.00013699,2]
[399920795,1766875638390,500.1765937,0.00013699,2]
[399920796,1766875638419,500.30541626,0.00013699,2]
[399920797,1766875639346,173.29231001,0.00013699,2]
[399920798,1766875639509,500.22641823,0.00013699,2]
[399920799,1766875640672,1000.0,0.00013821,2]
[399920800,1766875640720,500.0,0.00013273,2]
[399920801,1766875641120,-101.37708276,0.00014576,2]
[399920802,1766875641148,-644.7134942,0.00014578,2]
[399920803,1766875643187,500.25781824,0.00013699,2]
[399920804,1766875646498,500.65201175,0.00013699,2]
[399920805,1766875646810,500.20372006,0.00013699,2]
[399920806,1766875648025,500.86759667,0.00013699,2]
[399920807,1766875648371,500.0,0.00013273,2]
[399920808,1766875649158,500.81848271,0.00013699,2]
[399920809,1766875652998,694.43451911,0.00014389,2]
[399920810,1766875660546,150.0,8.709e-05,2]
[399920811,1766875660992,150.0,9.124e-05,2]
[399920812,1766875661244,318.77846692,0.00014389,2]
[399920813,1766875661269,2895.17754208,0.00014389,2]
[399920814,1766875685477,1786.043991,0.00014389,2]
[399920815,1766875743598,500.0,0.00013699,2]
[399920816,1766875743632,501.82574067,0.00014247,2]
[399920817,1766875743677,500.0,0.00013699,2]
[399920818,1766875743709,500.0,0.00013273,2]
[399920819,1766875743738,501.28970122,0.00014247,2]
[399920820,1766875743767,500.8586582,0.00014247,2]
[399920821,1766875743796,1000.0,0.00013821,2]
[399920822,1766875743826,500.0,0.00013699,2]
[399920823,1766875743855,500.81037818,0.00014247,2]
[399920824,1766875743884,314.00398865,0.00013699,2]
[399920825,1766875743908,185.99601135,0.00013699,2]
[399920826,1766875743936,502.09693195,0.00014368,2]
[399920827,1766875743964,500.0,0.00013273,2]
[399920828,1766875743992,472.54468566,0.00013821,2]
[399920829,1766875746722,500.0,0.00013273,2]
[399920830,1766875746754,500.0,0.00013699,2]
[399920831,1766875746783,1000.0,0.00013821,2]
[399920832,1766875746813,1000.0,0.00014247,2]